Cogmind - Beta 15 @@@ ROGUE MODE // 2025.08.25 @ 20:24:54 Player: OG DANIEL Result: Destroyed by G-47 Trooper with Particle Gun Performance ------------- Evolutions (3) 1500 Regions Visited (6) 1200 Robots Destroyed (68) 340 Value Destroyed (2203) 2203 Prototype IDs (0) 0 Alien Tech Used (0) 0 Bonus (141) 141 TOTAL SCORE: 5384 Bonus ------- Follower Combat Kills 202 Friendly Fire -61 Cogmind --------- Core Integrity 0/700 Matter 198/300 Energy 100/100 System Corruption 6% Temperature Cool (9) Movement Core (350) Ox6 Location -7/Factory Parts ------- > --- POWER (1) -------- (None) > --- PROPULSION (4) --- (None) > --- UTILITY (5) ------ Large Storage Unit > --- WEAPON (3) ------- (None) > --- INVENTORY (15) --- Light Nuclear Core Light Treads Aluminum Leg Armored Huge Wheel Improved Heat Sink Improved Heat Sink Machine Analyzer Recalibrator Plasma Cannon Light Assault Rifle Light Assault Rifle Peak State ------------ > --- POWER ------------ Light Nuclear Core > --- PROPULSION ------- Light Treads Medium Treads Aluminum Leg VSS Leg > --- UTILITY ---------- Improved Heat Sink Large Storage Unit Weapon Cycler ECM Suite Recalibrator > --- WEAPON ----------- Gatling Laser High-powered Shotgun Gauss Cannon > --- INVENTORY -------- Light Nuclear Core Improved Deuterium Engine Light Treads Armored Treads Aluminum Leg Armored Huge Wheel Improved Heat Sink Improved Heat Sink Machine Analyzer Kinecellerator Plasma Cannon Light Assault Rifle Light Assault Rifle Light Assault Rifle [Rating: 40] Favorites ----------- Power Light Ion Engine Engine Light Ion Engine Power Core Light Nuclear Core Propulsion Light Treads Treads Light Treads Leg Aluminum Leg Wheel Wheel Utility Large Storage Unit Device Improved Terrain Scanner Storage Large Storage Unit Protection Hardened Medium Armor Plating Weapon Light Assault Rifle Energy Gun Gatling Laser Ballistic Gun Light Assault Rifle Ballistic Cannon Light Cannon Launcher Rocket Launcher Build | -11 -10 -10 -9 -9 -8 -7 ------- Run | Yrd Mat Min Mat Min Mat Fac Slots Evolved 6 | . . . 2 . 2 2 Power . | . . . . . . . Propulsion 2 | . . . . . 2 . Utility 3 | . . . 2 . . 1 Weapon 1 | . . . . . . 1 Parts Attached 52 | 9 3 1 3 . 17 19 Power 6 | 2 . . . . 1 3 Engine 4 | 2 . . . . 1 1 Core 2 | . . . . . . 2 Reactor . | . . . . . . . Propulsion 15 | 3 . . . . 9 3 Treads 8 | 2 . . . . 4 2 Leg 6 | . . . . . 5 1 Wheel 1 | 1 . . . . . . Hover . | . . . . . . . Flight . | . . . . . . . Utility 17 | 2 1 . 2 . 5 7 Device 12 | 1 . . 2 . 2 7 Storage 4 | 1 1 . . . 2 . Processor . | . . . . . . . Hackware . | . . . . . . . Protection 1 | . . . . . 1 . Artifact . | . . . . . . . Weapon 14 | 2 2 1 1 . 2 6 Energy Gun 3 | . . . 1 . . 2 Energy Cannon . | . . . . . . . Ballistic Gun 6 | 2 . . . . 1 3 Ballistic Cannon 3 | . 1 . . . 1 1 Launcher 2 | . 1 1 . . . . Special Weapon . | . . . . . . . Impact Weapon . | . . . . . . . Slashing Weapon . | . . . . . . . Piercing Weapon . | . . . . . . . Special Melee Weapon . | . . . . . . . Unidentified Prototypes . | . . . . . . . Parts Lost 39 | . . . . . 16 23 Power 5 | . . . . . 2 3 Propulsion 13 | . . . . . 5 8 Utility 10 | . . . . . 5 5 Weapon 11 | . . . . . 4 7 Highest Loss Streak 15 | . . . . . 7 15 To Critical Strikes . | . . . . . . . Average Backups 9 | 3 7 9 9 10 9 11 Power . | . . 1 1 1 . 1 Propulsion 4 | 2 4 3 3 4 3 5 Utility . | . 1 2 1 1 . . Weapon 3 | 1 1 2 3 4 5 4 Tool/Special . | . . . . . . . Unused Backups 13 | . 2 1 1 . . 9 Power 3 | . . . . . . 3 Propulsion 3 | . . . . . . 3 Utility 4 | . 1 1 1 . . 1 Weapon 3 | . 1 . . . . 2 Tool/Special . | . . . . . . . Average Slot Usage (%) 91 | . 100 100 99 100 81 87 Engine 6 | . 14 14 11 11 5 . Core 1 | . . . . . . 4 Treads 19 | . 28 28 22 22 17 13 Leg 7 | . . . . . 13 14 Device 19 | . 14 14 32 33 9 21 Storage 11 | . 14 14 11 11 16 7 Energy Gun 2 | . . . 2 . . 4 Ballistic Gun 12 | . 22 12 17 22 5 11 Ballistic Cannon 6 | . 5 12 1 . 10 4 Peak Build Rating 40 | 9 9 11 20 16 22 40 Average Rating 18 | 4 9 10 16 16 15 29 On Entrance 11 | . 9 9 10 16 16 17 Naked Turns . | . . . . . . . Heaviest Build 47 | 13 18 21 24 18 44 47 Greatest Support 48 | 40 40 40 40 40 44 48 Greatest Overweight (x) 2 | . . . . . 1 2 Average Overweight (x) . | . . . . . . . Largest Inventory Capacity 15 | 8 10 10 10 10 15 15 Average Capacity 12 | 6 9 10 10 10 14 15 Most Carried 15 | 6 9 10 10 10 12 15 Average Carried 10 | 3 7 9 9 10 9 12 Final Capacity 15 | 8 10 10 10 10 15 15 Final Carried 12 | 6 9 10 10 10 10 12 Class Distribution -------------------- 63% | Mutant 32% | Scavenger-Gunner 4% | Scavenger-Mutant Dominant Class ---------------- Mutant | -10/Materials Mutant | -10/Mines Mutant | -9/Materials Mutant | -9/Mines Mutant | -8/Materials Scavenger-Gunner | -7/Factory Resources | -11 -10 -10 -9 -9 -8 -7 ----------- Run | Yrd Mat Min Mat Min Mat Fac Matter Collected 1867 | 324 78 82 155 135 654 439 Remotely . | . . . . . . . Salvage Created 2018 | 110 55 20 79 17 859 878 Parts 118 | 3 9 6 5 1 45 49 Haulers Intercepted 3 | . . . . . 2 1 Recyclers Shooed 3 | . . . . . 3 . Parts Field Recycled . | . . . . . . . Retrieved Matter . | . . . . . . . Parts Self-Destructed . | . . . . . . . Prevented . | . . . . . . . Kills | -11 -10 -10 -9 -9 -8 -7 ------- Run | Yrd Mat Min Mat Min Mat Fac Combat Hostiles Destroyed 51 | . 3 3 4 1 20 20 Guns 22 | . . . 1 1 5 15 Cannons 13 | . . . . . 11 2 AOE 16 | . 3 3 3 . 4 3 Classes Destroyed 12 | 2 3 . 1 . 4 2 Worker 5 | . 1 . . . . 4 Builder 2 | . . . . . . 2 Tunneler 1 | 1 . . . . . . Hauler 3 | . . . . . 2 1 Recycler 3 | 1 . . . . 1 1 Watcher 3 | . 1 . . . 1 1 Swarmer 14 | . 3 3 2 1 . 5 Grunt 27 | . . . 2 . 14 11 Brawler 1 | . . . . . 1 . Sentry 3 | . . . . . 1 2 Specialist 4 | . . . . . 4 . Programmer 2 | . . . . . . 2 Best Kill Streak 7 | 1 3 3 2 1 7 5 Combat Bots Only 7 | . 3 3 2 1 7 4 Max Kills in Single Turn 3 | 1 3 3 2 1 2 3 Gunslinging . | . . . . . . . Exploded 3 | . 3 3 2 . 2 3 Melee . | . . . . . . . Uniques/NPCs Destroyed . | . . . . . . . Combat | -11 -10 -10 -9 -9 -8 -7 -------- Run | Yrd Mat Min Mat Min Mat Fac Hostile Shots Fired 430 | . 4 7 6 2 140 271 Missed 129 | . 2 1 2 2 42 80 Hits 301 | . 2 6 4 . 98 191 Melee 2 | . . . 2 . . . Projectile 299 | . 2 6 2 . 98 191 Critical Strikes 14 | . . . . . 5 9 Part Disruptions 1 | . . . . . . 1 Damage Taken 5040 | . 37 48 162 . 1845 2948 Core 946 | . 10 . 12 . 214 710 Absorbed by Shields . | . . . . . . . Core Remaining (%) 88 | 100 . 96 . 97 61 . Volleys Fired 173 | 19 4 2 6 5 65 72 Largest 3 | 2 2 1 2 2 2 3 Hottest 155 | 40 50 33 105 40 67 155 Shots Fired 363 | 38 8 2 11 10 123 171 Gun 242 | 38 5 . 8 10 42 139 Cannon 108 | . 1 . . . 75 32 Launcher 13 | . 2 2 3 . 6 . Special . | . . . . . . . Kinetic 310 | 38 6 . 5 10 117 134 Thermal 29 | . . . 3 . . 26 Explosive 13 | . 2 2 3 . 6 . Electromagnetic 11 | . . . . . . 11 Robot Hit Streak 14 | 10 10 1 6 2 9 14 Robot Miss Streak 5 | 3 . 1 2 3 5 4 Penetration Max . | . . . . . . . Secondary Targets . | . . . . . . . Shots Hit Robots 244 | 27 5 1 8 5 77 121 Core Hits 182 | 9 7 6 14 1 64 81 Critical Kills 1 | . . . . . 1 . Critical Parts Destroyed 2 | . . . . . 1 1 Critical Strikes 5 | . . . . . 3 2 Destroy 3 | . . . . . 2 1 Blast 2 | . . . . . 1 1 Melee Attacks . | . . . . . . . Impact . | . . . . . . . Slashing . | . . . . . . . Piercing . | . . . . . . . Sneak Attacks . | . . . . . . . Combat Hostiles . | . . . . . . . Follow-up Attacks . | . . . . . . . Damage Inflicted 5203 | 237 179 157 314 51 1802 2463 Guns 2492 | 232 37 . 85 51 634 1453 Cannons 1451 | . . . . . 855 596 Explosions 1217 | . 140 140 229 . 311 397 Melee . | . . . . . . . Ramming 43 | 5 2 17 . . 2 17 Kinetic 3276 | 232 37 . 21 51 1489 1446 Thermal 904 | . . . 64 . . 840 Explosive 820 | . 140 140 229 . 311 . Electromagnetic 160 | . . . . . . 160 Impact . | . . . . . . . Slashing . | . . . . . . . Piercing . | . . . . . . . Highest Corruption 6 | . . . . . . 6 Average Corruption 3 | . . . . . . 3 Corruption Purged . | . . . . . . . Corruption Blocked . | . . . . . . . Effects 11 | . . . . . . 11 Message Errors 3 | . . . . . . 3 Matter Fused 3 | . . . . . . 3 Energy Discharges 3 | . . . . . . 3 Data Loss (minor) 2 | . . . . . . 2 Overload Shots . | . . . . . . . Overflow Damage 71 | . . . 6 . 17 48 Projectiles 7 | . . . . . . 7 Explosions 64 | . . . 6 . 17 41 Melee . | . . . . . . . Knockbacks 24 | . . . . . 12 12 Impact . | . . . . . . . Kinetic 22 | . . . . . 11 11 Secondary 2 | . . . . . 1 1 Self-Inflicted Damage 392 | . 20 . 75 . 18 279 Shots 8 | . 1 . 2 . 1 4 Rammed 20 | 2 1 7 . . 2 8 Targets Rammed 22 | 2 1 7 . . 2 10 Kicked . | . . . . . . . Crushed 2 | . . . . . . 2 Highest Temperature 86 | . 10 . 86 . 19 67 Average Temperature 14 | . 7 . 43 . 4 15 Received Heat Transfer 1515 | . . . 12 . 594 909 Siege Activations . | . . . . . . . Martial Activations . | . . . . . . . Shielding Activations . | . . . . . . . Robots Disrupted . | . . . . . . . Combat Hostiles . | . . . . . . . Robots Corrupted . | . . . . . . . Combat Hostiles . | . . . . . . . Parts Fried . | . . . . . . . Impact Corruptions . | . . . . . . . Robots Melted . | . . . . . . . Combat Hostiles . | . . . . . . . Parts Melted 2 | . . . . . . 2 Heat Transferred 1411 | . . . 111 . . 1300 Parts Sabotaged . | . . . . . . . Parts Stolen . | . . . . . . . Parts Stripped . | . . . . . . . Power Chain Reactions 1 | . . . . . . 1 Alert | -11 -10 -10 -9 -9 -8 -7 ------- Run | Yrd Mat Min Mat Min Mat Fac Maximum Alert Level 1 | . . . . . 1 1 Low Security (%) 93 | 100 100 100 100 100 73 94 Level 1 6 | . . . . . 26 5 Level 2 . | . . . . . . . Level 3 . | . . . . . . . Level 4 . | . . . . . . . Level 5 . | . . . . . . . High Security . | . . . . . . . Max Security . | . . . . . . . Peak Influence 275 | 5 79 109 96 132 275 215 Initial 96 | . . 26 33 13 47 96 Average 63 | . 8 10 43 28 140 83 Influence Increases 1982 | 10 91 109 213 162 704 693 Destroy 0b10 Robot/C 1260 | . 60 60 140 120 480 400 Destroy 0b10 Robot/NC 90 | 10 10 . 5 . 20 45 Destroy Leader 254 | . 12 10 22 20 96 94 Allied During Kill 53 | . . 8 12 22 11 . Successful Hack 26 | . . . . . 5 21 Disable Machine 120 | . . 15 . . 15 90 Destroy Structure 119 | . 9 16 19 . 32 43 Partial Spotted 15 | . . . 15 . . . Lose Combat Pursuer 45 | . . . . . 45 . Influence Decreases 1982 | 10 22 93 262 76 613 906 Entered New Map 310 | . . 43 52 23 75 117 Time Decay 1129 | 10 22 50 190 53 318 486 Lost Part 313 | . . . . . 160 153 Lost Ally 80 | . . . 20 . 60 . Purge Threat 150 | . . . . . . 150 Squads Dispatched 20 | . 2 1 2 . 5 10 Investigation 5 | . . 1 1 . 1 2 Extermination 3 | . . . . . . 3 Reinforcement 8 | . 2 . 1 . 4 1 Assault . | . . . . . . . Garrison 4 | . . . . . . 4 Intercept . | . . . . . . . Searches Triggered . | . . . . . . . Construction Impeded . | . . . . . . . Haulers Reinforced 1 | . . . . . . 1 Active Scanning Responses . | . . . . . . . Cargo Convoy Interrupts . | . . . . . . . Stealth | -11 -10 -10 -9 -9 -8 -7 --------- Run | Yrd Mat Min Mat Min Mat Fac Distress Signals 8 | . 1 . 1 . 3 3 Communications Jammed . | . . . . . . . Distress Signals . | . . . . . . . Times Spotted 101 | . 10 3 10 5 31 42 Peak Tracking Total 8 | . 4 3 4 3 6 8 Tactical Retreats 9 | . . . . . 3 6 Traps | -11 -10 -10 -9 -9 -8 -7 ------- Run | Yrd Mat Min Mat Min Mat Fac Traps Triggered 1 | . . . . . 1 . Indirectly . | . . . . . . . Trap Hack Attempts . | . . . . . . . Triggered . | . . . . . . . Disarmed . | . . . . . . . Reprogrammed . | . . . . . . . Reused . | . . . . . . . Traps Extracted . | . . . . . . . Installed . | . . . . . . . Triggered . | . . . . . . . Machines | -11 -10 -10 -9 -9 -8 -7 ---------- Run | Yrd Mat Min Mat Min Mat Fac Machines Disabled 8 | . . 1 . . 1 6 Max in Single Turn 4 | . . . . . 1 4 Machines Repaired . | . . . . . . . Machines Dismantled . | . . . . . . . Machines Sabotaged . | . . . . . . . Overloaded Fab Kills . | . . . . . . . Hacking | -11 -10 -10 -9 -9 -8 -7 --------- Run | Yrd Mat Min Mat Min Mat Fac Machines Accessed 14 | . 2 1 4 . 1 6 Terminals 12 | . 2 . 3 . 1 6 Fabricators . | . . . . . . . Repair Stations . | . . . . . . . Recycling Units 1 | . . . 1 . . . Scanalyzers . | . . . . . . . Garrison Access . | . . . . . . . Total Hacks 30 | . 6 1 10 . 1 12 Successful 18 | . 6 1 3 . 1 7 Failed 12 | . . . 7 . . 5 Catastrophic 1 | . . . . . . 1 Database Lockouts . | . . . . . . . Manual 17 | . 2 . 7 . 1 7 Terminals 27 | . 6 . 8 . 1 12 Fabricators . | . . . . . . . Repair Stations . | . . . . . . . Recycling Units 2 | . . . 2 . . . Scanalyzers . | . . . . . . . Garrison Access . | . . . . . . . Terminal Hacks 9 | . 4 1 . . . 4 Record 1 | . 1 . . . . . Part Schematic 1 | . . . . . . 1 Open Door 1 | . . 1 . . . . Open DSF 2 | . . . . . . 2 Unreport Threat 1 | . . . . . . 1 Locate Traps 1 | . 1 . . . . . Dispatch Records 2 | . 2 . . . . . Fabricator Hacks . | . . . . . . . Repair Station Hacks . | . . . . . . . Recycling Unit Hacks 2 | . . . 2 . . . Recycle Component 1 | . . . 1 . . . Process 1 | . . . 1 . . . Scanalyzer . | . . . . . . . Garrison Access Hacks . | . . . . . . . Unauthorized Hacks 7 | . 2 . 1 . 1 3 Terminals 7 | . 2 . 1 . 1 3 Botnet 7 | . 2 . 1 . 1 3 Fabricators . | . . . . . . . Repair Stations . | . . . . . . . Recycling Units . | . . . . . . . Scanalyzers . | . . . . . . . Garrison Access . | . . . . . . . Data Cores Recovered . | . . . . . . . Used . | . . . . . . . Hacking Detections 9 | . 1 . 2 . 1 5 Full Trace Events 4 | . . . 2 . . 2 Feedback Events . | . . . . . . . Feedback Blocked . | . . . . . . . Robot Schematics Acquired . | . . . . . . . Robots Built . | . . . . . . . Authchips . | . . . . . . . Time . | . . . . . . . Total Robot Build Rating . | . . . . . . . Part Schematics Acquired 1 | . . . . . . 1 Parts Built . | . . . . . . . Authchips . | . . . . . . . Time . | . . . . . . . Total Part Build Rating . | . . . . . . . Parts Repaired . | . . . . . . . Time . | . . . . . . . Parts Recycled 1 | . . . 1 . . . Recycled Matter 58 | . . . 58 . . . Retrieved Matter . | . . . . . . . Retrieved Components . | . . . . . . . Parts Scanalyzed . | . . . . . . . Part Schematics Acquired . | . . . . . . . Parts Damaged . | . . . . . . . Bothacking | -11 -10 -10 -9 -9 -8 -7 ------------ Run | Yrd Mat Min Mat Min Mat Fac Used RIF Installer . | . . . . . . . Robots Hacked . | . . . . . . . Non-combat . | . . . . . . . Combat . | . . . . . . . Robot Hacks Applied . | . . . . . . . Relay Couplers Released . | . . . . . . . Fabnet Peak Effective % . | . . . . . . . Robots Rewired . | . . . . . . . Allies Hacked . | . . . . . . . Hacks Repelled . | . . . . . . . Allies | -11 -10 -10 -9 -9 -8 -7 -------- Run | Yrd Mat Min Mat Min Mat Fac Total Allies 6 | . . 3 . 3 . . Largest Group 3 | . . 3 2 3 3 . Highest-Rated Group 73 | . . 73 62 40 40 . Highest-Rated Ally 31 | . . 31 31 16 16 . Total Orders . | . . . . . . . Ally Attacks 65 | . . 2 22 28 13 . Total Damage 764 | . . . 334 305 125 . Kills 13 | . . . 4 5 4 . Allies Corrupted . | . . . . . . . Allies Melted . | . . . . . . . Intel | -11 -10 -10 -9 -9 -8 -7 ------- Run | Yrd Mat Min Mat Min Mat Fac Active Infowar (turns) 2729 | 13 319 693 397 224 195 888 Sensors 745 | . . . 397 224 124 . Terrain 1780 | 13 319 693 397 224 134 . ECM 949 | . . . . . 61 888 Robot Analysis Total . | . . . . . . . Derelict Logs Recovered 1 | . . 1 . . . . Drone Launches . | . . . . . . . Drone Recoveries . | . . . . . . . Exploration | -11 -10 -10 -9 -9 -8 -7 ------------- Run | Yrd Mat Min Mat Min Mat Fac Turns Passed 4025 | 246 319 693 397 224 714 1432 Spaces Moved 1834 | 90 160 413 202 111 257 601 Core 2 | 2 . . . . . . Treads 1825 | 81 160 413 202 111 257 601 Legs . | . . . . . . . Wheels 7 | 7 . . . . . . Hover . | . . . . . . . Flight . | . . . . . . . Fastest Speed 50 | 50 160 160 160 160 145 152 Average Speed 165 | 151 160 160 160 160 164 174 Slowest Speed 320 | 160 160 160 160 160 240 320 Overloaded Moves . | . . . . . . . Propulsion Burnouts . | . . . . . . . Robots Hopped . | . . . . . . . Potential Cave-ins . | . . . . . . . Cave-ins Triggered . | . . . . . . . Exploration Rate (%) 26 | 6 41 52 24 20 20 20 Regions Visited 6 Branch Regions 2 Pre-discovered Areas . | . . . . . . . Known Exits Taken . | . . . . . . . Unknown Exits Taken 6 | 1 1 1 1 1 1 . Scrap Searched 1 | . . 1 . . . . Spaces Dug . | . . . . . . . Terrain Destroyed 142 | . 8 17 21 . 54 42 Melee . | . . . . . . . Projectile 8 | . . . . . . 8 AOE 134 | . 8 17 21 . 54 34 Terrain Rammed . | . . . . . . . Walls Destroyed . | . . . . . . . Machines Disabled . | . . . . . . . Actions | -11 -10 -10 -9 -9 -8 -7 --------- Run | Yrd Mat Min Mat Min Mat Fac Total 2485 | 165 216 439 263 150 421 831 Wait 325 | 37 38 10 43 35 60 102 Move 1828 | 89 159 412 201 110 256 601 Hop . | . . . . . . . Pick Up 43 | 6 6 3 4 . 11 13 Fast Attach 16 | 7 . . . . 2 7 Attach 29 | 1 . . 2 . 15 11 Detach 4 | 1 . . . . 2 1 Swap 31 | 2 4 3 6 . 7 9 Drop 14 | 1 4 2 1 . 1 5 Fire 173 | 19 4 2 6 5 65 72 Melee . | . . . . . . . Ram 4 | . . . . . . 4 Kick . | . . . . . . . Crush 18 | 2 1 7 . . 2 6 Escape Stasis . | . . . . . . . Rewire . | . . . . . . . Trap . | . . . . . . . Miscellaneous . | . . . . . . . Route ------- -11/Scrapyard -10/Materials -10/Mines -9/Materials -9/Mines (discovered 2 exits: *Mat x2) -8/Materials -7/Factory History --------- Turn | Location | Event 50 | -11/Scrapyard | Discovered new exit (range 16) 247 | -11/Scrapyard | Entered Materials 311 | -10/Materials | Build established: Mutant 537 | -10/Materials | Discovered new exit (range 16) 566 | -10/Materials | Entered Mines 573 | -10/Mines | Received a Rocket Launcher from a helpful Derelict 712 | -10/Mines | Learned Materials garrison access intel 820 | -10/Mines | Met a Derelict shopkeep closing up shop 1004 | -10/Mines | Assembled infested the area 1245 | -10/Mines | Discovered new exit (range 9) 1250 | -10/Mines | Received a Mining Laser from a helpful Derelict 1259 | -10/Mines | Entered Materials 1259 | -9/Materials | Accompanied by 2 allies 1259 | -9/Materials | Evolved 2 slots: Utility x2 1264 | -9/Materials | Led the pair of lost Derelicts to an unsafe place 1641 | -9/Materials | Discovered new exit (range 7) 1656 | -9/Materials | Entered Mines 1665 | -9/Mines | Met a Derelict bent on vengeance 1722 | -9/Mines | Assisted by bots powering up and referring to "LRC-V3" 1852 | -9/Mines | Discovered new exit (range 5) 1867 | -9/Mines | Discovered new exit (range 13) 1880 | -9/Mines | Entered Materials 1880 | -8/Materials | Accompanied by 3 allies 1880 | -8/Materials | Evolved 2 slots: Propulsion x2 1881 | -8/Materials | Loaded intel: 1 garrison access location 2045 | -8/Materials | Lost 7 parts (1p2n2u2w) 2468 | -8/Materials | Destroyed 7 combat bots 2475 | -8/Materials | Lost 6 parts (3n1u2w) 2567 | -8/Materials | Discovered new exit (range 16) 2594 | -8/Materials | Entered Factory 2594 | -7/Factory | Evolved 2 slots: Utility x1, Weapon x1 2902 | -7/Factory | Build established: Scavenger-Gunner 3338 | -7/Factory | Garrison activated, responded to threat 3956 | -7/Factory | Garrison activated, responded to threat 4006 | -7/Factory | Core integrity fell below 50% 4021 | -7/Factory | Core integrity fell below 20% 4026 | -7/Factory | Destroyed by G-47 Trooper with Particle Gun Last Messages --------------- 04012_ Critical hit (Burn: +37). 04013_ R-06 Scavenger collects Tractor Beam. 04014_ Penetrated by Slug. 04014_ Lgt. Assault Rifle destroyed. 04014_ Slammed into H-55 Commando. 04015_ Acquired 24 matter. 04016_ R-06 Scavenger collects VTOL Module. 04017_ Critical hit (Burn: +37). 04017_ Penetrated by Slug. 04018_ Slammed into H-55 Commando. 04019_ Critical hit (Burn: +37). 04019_ R-06 Scavenger collects Com. Wheel. 04020_ Penetrated by Slug. 04021_ Slammed into H-55 Commando. 04022_ K-01 Serf collects debris. 04024_ R-06 Scavenger collects Lgt. Nuclear Core. 04025_ Slammed into H-55 Commando. 04025_ U-05 Engineer builds a Door. 04026_ Slug penetrates Wall. Map ----- +----------------------------------------------------+ | ??????????????????????????????????????? #???????? | | ???????????????????????????????????????# #???????? | | ???????????????????????????????????????# #???????? | | ???????????????????????????????????????# #???????? | | ???????????????????????????????????????? ????????? | | ???????????????????????????????????????? ????????? | | ???????????????????????????????????????? ????????? | | ????????????????????????????????????????+????????? | | ???????????????????????????????????????? ????????? | | ???????????????????????????????????????? ????????? | | ???????????????????????????????????????? ????????? | | ?????????????????????????????????????????????????? | | ?????????????????????????????????????????????????? | | ?????????????????????????????????????????????????? | | ?????????????????????????????????????????????????? | | ?????????????????????????????????????????????????? | | ??????????????###??######????????????????????????? | | ??????????????? ? #????????????????????????? | | ???????????#??? #????????????????????????? | | ???????????# """ """" #????????????????????????? | | ???????????# """ """" #????????????????????????? | | ???????????# """ """" #????????????????????????? | | ???????????# """" #?##???????? #???????????? | | ???????????# """" %## #???? ????????? | | ???????????# """" #g### ????????? | | ???????????# """"ruu@hpg ^ ????????? | | ??????????#" g #####u " " ??????????? | | ???????????# % %##?????????"?????????????? | | ???????????# % =#????? ?????????????????? | | ????##############/########## ???????????????? | | ??? ???????????????? | | ??? ???????????????? | | ??? ^ """ """ ??? ??? ????????? | | ??? """ """ ??? ??? ????????? | | ??? ^ """ """ ""? ??" ????????? | | ????##############+### #???????? | | ????????????????? ?# """ """ """ "?" #???????? | | ?????????????????"""?# """ """ "?" """ #???????? | | ???????????????? """ # """ """ """ """ #???????? | | ???????????????? """ # #???????? | | ??????????????? # """ """ """ """ +???????? | | ???????????????" """ # """ """ """ """ #???????? | | ??????????????"" """ # """ """ """ """ #???????? | | ???????????????"?????# ######### | | ?????????????????????# """ """ """ """ | | ?????????????????????# """ """ """ """ | | ?????????????????????# """ """ """ """ | | ?????????????????????# | | ?????????????????????# | | ????????????????#########+############ #### ## | +----------------------------------------------------+ Best States ------------- Heat Dissipation 62 Energy Generation 16 Energy Capacity 290 Matter Stores 446 Matter Capacity 450 Sight Range 16 Robot Scan Range 15 Terrain Scan Range 16 Terrain Scan Density 10 ECM Strength 1 Armor Coverage 225 Weapon Cycling 15 Evasion (%) 50 Recoil Reduction 6 Kinecelleration 30 Item Schematics ----------------- Phase Shifter | -7/Factory | Hacked Robot Schematics ------------------ None Fabricated ------------ Nothing Repaired ---------- Nothing Alien Tech Used ----------------- None Achievements -------------- None Challenges ------------ None Game ------ Seed EnhancedPrecisionFrame Manual? 0 Play Time 00:42:47 Cumulative 31.4 hours Start 2025.08.06 @ 20:24:51 End 2025.08.25 @ 20:24:54 Sessions 2 Manual Loads 0 Difficulty Rogue Special Mode None Game No. 83 Rogue 83 Adventurer 0 Explorer 0 Win Type - Total 0 Types 0/0/0/0/0/0/0/0/0/0 Lore% 9 Gallery% 21 Achievement% 21 Wizard Run 0 Options --------- Layout 1 ASCII 0 Keyboard 0 Movement Numpad Keybinds 0 Fullscreen 0 Font 20/SmallcapsGlow Map View 50x35 Zoom Use 0% Tactical HUD 1 Map Filters NONE Filters NONE Steam 1 RUN: 73b65c01-0129-40cb-9a7f-b15b10549a05